bitfinex-derivatives/quotes_BTCF0:USTF0_20251228
["timestamp","ask_amount","ask_price","bid_price","bid_amount"]
[1766905531183,0.02444459,87753.0,87743.0,0.0114059]
[1766905531483,0.02444459,87752.0,87743.0,0.0114059]
[1766905531680,0.00017099,87765.0,87740.0,0.2288999]
[1766905531876,0.00017099,87765.0,87754.0,0.0114045]
[1766905532078,0.00017099,87765.0,87756.0,0.0114042]
[1766905532273,0.05704,87769.0,87756.0,0.0114042]
[1766905532674,0.00227862,87773.0,87760.0,0.0114037]
[1766905533087,0.00227862,87773.0,87760.0,0.12585365]
[1766905533286,0.00227862,87773.0,87760.0,0.0114037]
[1766905533878,0.00227862,87773.0,87759.0,0.0114039]
[1766905534388,0.00227862,87773.0,87760.0,0.05704]
[1766905535083,0.11444995,87770.0,87760.0,0.05704]
[1766905536788,0.00227862,87773.0,87760.0,0.05704]
[1766905537193,0.0114023,87772.0,87760.0,0.05704]
[1766905538982,0.00017099,87775.0,87760.0,0.17148995]
[1766905540184,0.00017099,87775.0,87763.0,0.0114033]
[1766905540590,0.00017099,87775.0,87765.0,0.011403]
[1766905541092,0.068441,87782.0,87765.0,0.011403]
[1766905541994,0.11444995,87780.0,87765.0,0.011403]
[1766905547695,0.11444995,87780.0,87762.0,0.0114035]
[1766905547997,0.12585115,87780.0,87762.0,0.0114035]
[1766905551298,0.12585115,87780.0,87764.0,0.0114032]
[1766905552500,0.0114012,87780.0,87764.0,0.0114032]
[1766905552798,0.12585115,87780.0,87764.0,0.0114032]
[1766905554807,0.05721099,87782.0,87760.0,0.17148995]
[1766905554808,0.00017099,87782.0,87760.0,0.17148995]
[1766905555188,0.0114012,87781.0,87761.0,0.11393154]
[1766905555499,0.0114012,87781.0,87765.0,0.0114031]
[1766905556400,0.11444995,87780.0,87765.0,0.0114031]
[1766905560006,0.11444995,87775.0,87760.0,0.05704]
[1766905560210,0.11444995,87770.0,87760.0,0.05704]
[1766905560407,0.011402,87774.0,87760.0,0.05704]
[1766905560901,0.11444995,87770.0,87760.0,0.05704]
[1766905561302,0.00017099,87782.0,87760.0,0.17148995]
[1766905562008,0.11444995,87780.0,87764.0,0.0114032]
[1766905569426,0.11444995,87780.0,87760.0,0.17148995]
[1766905570226,0.11444995,87780.0,87765.0,0.011403]
[1766905572427,0.12585115,87780.0,87765.0,0.011403]
[1766905572629,0.12585115,87780.0,87762.0,0.0114035]
[1766905573320,0.12585115,87780.0,87764.0,0.0114032]
[1766905573526,0.11444995,87780.0,87760.0,0.05704]
[1766905574032,0.11444995,87780.0,87760.0,0.17148995]
[1766905574227,0.11444995,87780.0,87765.0,0.0114031]
[1766905577330,0.11444995,87780.0,87767.0,0.0114028]
[1766905579627,0.00017099,87782.0,87763.0,0.09692]
[1766905580133,0.11444995,87780.0,87763.0,0.09692]
[1766905581135,0.11444995,87780.0,87768.0,0.0114027]
[1766905586730,0.00017099,87782.0,87763.0,0.09692]
[1766905587035,0.00017099,87782.0,87764.0,0.11392895]
[1766905587230,0.00017099,87782.0,87773.0,0.011402]
[1766905587433,0.00350297,87788.0,87775.0,0.0114018]
[1766905587635,0.05704,87789.0,87778.0,0.0114014]
[1766905588237,0.05704,87789.0,87775.0,0.0114018]
[1766905593649,0.05704,87789.0,87773.0,0.00017089]
[1766905594040,0.00011298,87791.0,87757.0,0.09692]
[1766905594041,0.11435999,87783.0,87757.0,0.09692]
[1766905594237,0.11435999,87783.0,87758.0,0.09692]
[1766905594238,0.0114022,87773.0,87758.0,0.09692]
[1766905594540,0.011403,87767.0,87746.0,0.0114055]
[1766905594743,0.0114034,87763.0,87744.0,0.0114058]
[1766905594941,0.00017089,87762.0,87745.0,0.00017089]
[1766905595136,0.00017089,87762.0,87746.0,0.09692]
[1766905595542,0.00017089,87762.0,87746.0,0.1083255]
[1766905599949,0.01157449,87762.0,87746.0,0.09692]
[1766905600160,0.00017089,87762.0,87747.0,0.15396]
[1766905600457,0.011404,87759.0,87747.0,0.15396]
[1766905603753,0.0114041,87758.0,87747.0,0.15396]
[1766905605155,0.0114039,87760.0,87747.0,0.15396]
[1766905609053,0.00017089,87762.0,87747.0,0.15396]
[1766905609259,0.0114037,87761.0,87747.0,0.15396]
[1766905610460,0.00017089,87762.0,87747.0,0.15396]
[1766905611956,0.01157449,87762.0,87747.0,0.15396]
[1766905613463,0.01157449,87762.0,87748.0,0.0114053]
[1766905614565,0.00017089,87762.0,87748.0,0.0114053]
[1766905614767,0.00017089,87762.0,87750.0,0.011405]
[1766905616164,0.00017089,87762.0,87747.0,0.15396]
[1766905616359,0.05704,87773.0,87763.0,0.0114034]
[1766905616558,0.0114013,87780.0,87763.0,0.0114034]
[1766905616766,0.02414119,87779.0,87763.0,0.0114034]
[1766905616961,0.02414119,87778.0,87763.0,0.0114034]
[1766905617264,0.02414119,87777.0,87762.0,0.05721089]
[1766905620269,0.02414119,87777.0,87762.0,0.06861439]
[1766905620764,0.00011298,87779.0,87762.0,0.06861439]
[1766905620964,0.02415525,87778.0,87762.0,0.06861439]
[1766905621163,0.02415525,87777.0,87762.0,0.06861439]
[1766905621468,0.02415525,87776.0,87764.0,0.0114032]
[1766905621669,0.00011298,87779.0,87764.0,0.0114032]
[1766905621870,0.0241609,87778.0,87764.0,0.0114032]
[1766905622070,0.0241609,87777.0,87764.0,0.0114032]
[1766905622271,0.0241609,87776.0,87764.0,0.0114032]
[1766905622571,0.00011298,87779.0,87764.0,0.0114032]
[1766905622769,0.02416743,87778.0,87764.0,0.0114032]
[1766905622971,0.02416743,87777.0,87764.0,0.0114032]
[1766905623169,0.02416743,87776.0,87764.0,0.0114032]
[1766905623471,0.02416743,87775.0,87764.0,0.0114032]
[1766905623672,0.00011298,87779.0,87764.0,0.0114032]
[1766905623872,0.02417388,87778.0,87764.0,0.0114032]
[1766905624071,0.00011298,87779.0,87764.0,0.0114032]
[1766905624072,0.02417388,87777.0,87764.0,0.0114032]
[1766905624274,0.02417388,87776.0,87764.0,0.0114032]
[1766905624474,0.02417388,87775.0,87764.0,0.0114032]
[1766905624673,0.02417388,87774.0,87764.0,0.0114032]
[1766905624972,0.01151438,87779.0,87762.0,0.05721089]
[1766905625174,0.02418051,87778.0,87762.0,0.05721089]
[1766905625372,0.03558211,87777.0,87762.0,0.05721089]
[1766905625567,0.02418051,87776.0,87762.0,0.05721089]
[1766905625768,0.02418051,87775.0,87762.0,0.05721089]
[1766905625973,0.02418051,87774.0,87762.0,0.05721089]
[1766905626271,0.0114016,87777.0,87762.0,0.05721089]
[1766905626477,0.02427842,87776.0,87762.0,0.05721089]
[1766905626666,0.0114016,87777.0,87762.0,0.05721089]
[1766905626667,0.02427842,87775.0,87762.0,0.05721089]
[1766905626867,0.02427842,87774.0,87762.0,0.05721089]
[1766905627068,0.02427842,87773.0,87762.0,0.05721089]
[1766905627369,0.02427842,87772.0,87762.0,0.05721089]
[1766905627669,0.0114016,87777.0,87762.0,0.05721089]
[1766905627867,0.0114019,87775.0,87762.0,0.05721089]
[1766905628067,0.02427776,87774.0,87762.0,0.05721089]
[1766905628275,0.0114022,87772.0,87762.0,0.05721089]
[1766905629576,0.00011298,87779.0,87762.0,0.05721089]
[1766905629782,0.02427625,87778.0,87762.0,0.05721089]
[1766905629973,0.02427625,87777.0,87762.0,0.05721089]
[1766905630278,0.0114028,87768.0,87762.0,0.05721089]
[1766905643096,0.0114024,87771.0,87762.0,0.05721089]
[1766905643296,0.02428779,87770.0,87762.0,0.05721089]
[1766905643495,0.02428779,87769.0,87762.0,0.05721089]
[1766905643689,0.0114024,87771.0,87762.0,0.05721089]
[1766905643890,0.02428818,87770.0,87762.0,0.05721089]
[1766905644090,0.02428818,87769.0,87762.0,0.05721089]
[1766905644291,0.0114024,87771.0,87762.0,0.05721089]
[1766905644587,0.02429173,87770.0,87762.0,0.05721089]
[1766905644788,0.02429173,87769.0,87762.0,0.05721089]
[1766905644990,0.0114024,87771.0,87762.0,0.05721089]
[1766905645196,0.02429173,87770.0,87762.0,0.05721089]
[1766905645392,0.02429173,87769.0,87762.0,0.05721089]
[1766905645590,0.0114024,87771.0,87762.0,0.05721089]
[1766905645796,0.024296,87770.0,87762.0,0.05721089]
[1766905646005,0.024296,87769.0,87762.0,0.05721089]
[1766905646296,0.024296,87768.0,87762.0,0.05721089]
[1766905646503,0.0114024,87771.0,87762.0,0.05721089]
[1766905646696,0.02430394,87770.0,87762.0,0.05721089]
[1766905646897,0.02430394,87769.0,87762.0,0.05721089]
[1766905647191,0.02430394,87768.0,87762.0,0.05721089]
[1766905647396,0.0114024,87771.0,87762.0,0.05721089]
[1766905647596,0.02430401,87770.0,87762.0,0.05721089]
[1766905647796,0.02430401,87769.0,87762.0,0.05721089]
[1766905647998,1e-08,87768.0,87763.0,0.0114034]
[1766905648304,0.00011298,87779.0,87763.0,0.0114034]
[1766905648993,0.11441322,87773.0,87763.0,0.0114034]
[1766905649194,0.00011298,87779.0,87763.0,0.0114034]
[1766905649402,0.11441322,87773.0,87763.0,0.0114034]
[1766905650805,0.00011298,87779.0,87763.0,0.0114034]
[1766905656205,0.00011298,87779.0,87762.0,0.05721089]
[1766905656410,0.11441322,87773.0,87762.0,0.05721089]
[1766905666215,0.0114022,87772.0,87762.0,0.05721089]
[1766905666521,0.0114025,87770.0,87762.0,0.05721089]
[1766905669118,0.0114028,87768.0,87762.0,0.05721089]
[1766905670322,0.0114028,87768.0,87762.0,0.00017089]
[1766905672319,0.0114024,87771.0,87762.0,0.00017089]
[1766905673514,0.12581552,87772.0,87762.0,0.00017089]
[1766905676826,0.0114025,87770.0,87762.0,0.00017089]
[1766905679126,0.11441322,87772.0,87762.0,0.00017089]
[1766905679322,0.0114024,87771.0,87762.0,0.00017089]
[1766905682932,0.0114027,87769.0,87762.0,0.00017089]
[1766905684426,0.11441322,87772.0,87762.0,0.00017089]
[1766905685232,0.0114026,87769.0,87762.0,0.00017089]
[1766905690638,0.12581552,87772.0,87762.0,0.00017089]
[1766905692239,0.0114025,87770.0,87762.0,0.00017089]
[1766905697345,0.11441322,87772.0,87762.0,0.00017089]
[1766905709950,0.05704,87775.0,87762.0,0.00017089]
[1766905716055,0.011402,87774.0,87762.0,0.00017089]
[1766905716654,0.11442093,87772.0,87758.0,0.05104]
[1766905716859,0.0114029,87768.0,87750.0,0.05704]
[1766905717043,0.0684429,87768.0,87750.0,0.05704]
[1766905717243,0.02420229,87767.0,87750.0,0.05704]
[1766905717449,0.02420229,87766.0,87750.0,0.05704]
[1766905717756,0.0684429,87768.0,87750.0,0.05704]
[1766905717956,0.0684429,87768.0,87749.0,0.09709089]
[1766905717957,0.0114031,87766.0,87749.0,0.09109089]
[1766905718153,0.11442093,87760.0,87740.0,0.09692]
[1766905718353,0.11442093,87760.0,87721.0,0.0114087]
[1766905718354,0.0114042,87757.0,87735.0,0.068447]
[1766905718553,0.0114042,87757.0,87737.0,0.0114067]
[1766905718554,0.02418623,87756.0,87737.0,0.0114067]
[1766905718752,0.02418623,87755.0,87737.0,0.0114067]
[1766905718955,0.02418623,87754.0,87737.0,0.0114067]
[1766905719151,0.02418623,87753.0,87737.0,0.00017089]
[1766905719356,0.05704,87752.0,87741.0,0.0114062]
[1766905726766,0.05704,87752.0,87738.0,0.0114066]
[1766905728071,0.05704,87752.0,87737.0,0.00017089]
[1766905728268,0.05704,87752.0,87738.0,0.0114066]
[1766905737963,0.05704,87752.0,87740.0,0.0114063]
[1766905738573,0.05704,87752.0,87737.0,0.00017089]
[1766905738981,0.05704,87752.0,87744.0,0.0114058]
[1766905744486,0.00017089,87754.0,87744.0,0.0114058]
[1766905744682,0.05721089,87754.0,87744.0,0.0114058]
[1766905744879,0.00017089,87754.0,87744.0,0.0114058]
[1766905745483,0.00017089,87754.0,87746.0,0.0114055]
[1766905746281,0.02468778,87753.0,87746.0,0.0114055]
[1766905746581,0.00017089,87754.0,87746.0,0.0114055]
[1766905746781,8e-08,87753.0,87748.0,0.0114053]
[1766905746979,0.00017089,87754.0,87748.0,0.0114053]
[1766905747570,0.0131044,87764.0,87750.0,0.011405]
[1766905747771,0.154,87763.0,87750.0,0.011405]
[1766905747981,0.05704,87762.0,87750.0,0.011405]
[1766905749085,0.05704,87762.0,87752.0,0.0114047]
[1766905750876,0.05704,87762.0,87749.0,0.0114051]
[1766905758790,0.02407987,87761.0,87749.0,0.0114051]
[1766905758992,0.05704,87762.0,87749.0,0.0114051]
[1766905758993,0.02407987,87760.0,87749.0,0.0114051]
[1766905759298,0.02407987,87759.0,87749.0,0.0114051]
[1766905759496,0.05704,87762.0,87749.0,0.0114051]
[1766905759794,0.02407966,87761.0,87749.0,0.0114051]
[1766905759980,0.02407966,87760.0,87749.0,0.0114051]
[1766905760183,0.02407966,87759.0,87749.0,0.0114051]
[1766905760383,0.05704,87762.0,87749.0,0.0114051]
[1766905760685,0.02407961,87761.0,87749.0,0.0114051]
[1766905760879,0.02407961,87760.0,87749.0,0.0114051]
[1766905761088,0.02407961,87759.0,87749.0,0.0114051]
[1766905761295,0.05704,87762.0,87749.0,0.0114051]
[1766905761502,0.02407972,87761.0,87749.0,0.0114051]
[1766905761795,0.02407972,87760.0,87749.0,0.0114051]
[1766905761996,0.02407972,87759.0,87749.0,0.0114051]
[1766905762297,0.05704,87762.0,87749.0,0.0114051]
[1766905762496,0.02407996,87761.0,87749.0,0.0114051]
[1766905762794,0.02407996,87760.0,87749.0,0.0114051]
[1766905762995,0.02407996,87759.0,87749.0,0.0114051]
[1766905763198,0.05704,87762.0,87749.0,0.0114051]
[1766905763397,0.02408034,87761.0,87749.0,0.0114051]
[1766905763597,0.02408034,87760.0,87749.0,0.0114051]
[1766905763897,0.02408034,87759.0,87749.0,0.0114051]
[1766905764098,0.05704,87762.0,87749.0,0.0114051]
[1766905764396,0.02408044,87761.0,87749.0,0.0114051]
[1766905764591,0.02408044,87760.0,87749.0,0.0114051]
[1766905764793,0.02408044,87759.0,87749.0,0.0114051]
[1766905764992,0.05704,87762.0,87749.0,0.0114051]
[1766905765192,0.02408105,87761.0,87749.0,0.0114051]
[1766905765398,0.05704,87762.0,87749.0,0.0114051]
[1766905770002,0.11445172,87760.0,87749.0,0.0114051]
[1766905775603,0.11445172,87760.0,87746.0,0.0114055]
[1766905777000,0.11445172,87760.0,87748.0,0.0114053]
[1766905780804,0.05704,87762.0,87748.0,0.0114053]
[1766905781003,0.11445172,87760.0,87748.0,0.0114053]
[1766905795820,0.11445172,87760.0,87748.0,0.04221151]
[1766905796213,0.11445172,87760.0,87748.0,0.03080621]
[1766905797124,0.11445172,87760.0,87747.0,0.03080621]
[1766905801633,0.0684436,87762.0,87747.0,0.03080621]
[1766905801832,0.11445172,87760.0,87747.0,0.03080621]
[1766905805937,0.11445172,87760.0,87748.0,0.03080621]
[1766905815546,0.11445172,87760.0,87749.0,0.03080621]
[1766905818150,0.11445172,87760.0,87748.0,0.03080621]
[1766905818540,0.11445172,87760.0,87747.0,0.03080621]
[1766905819146,0.0684436,87762.0,87747.0,0.03080621]
[1766905819346,0.11445172,87760.0,87747.0,0.03080621]
[1766905820045,0.12585552,87760.0,87747.0,0.03080621]
[1766905821444,0.05704,87762.0,87747.0,0.03080621]
[1766905821651,0.0114045,87755.0,87746.0,0.01280621]
[1766905821841,0.0114045,87755.0,87745.0,0.05704]
[1766905822144,0.0114045,87755.0,87746.0,0.01139]
[1766905826556,0.11445172,87757.0,87746.0,0.01139]
[1766905829558,0.0114037,87761.0,87746.0,0.01139]
[1766905829858,0.11445172,87756.0,87746.0,0.01139]
[1766905830058,0.0114037,87761.0,87746.0,0.01139]
[1766905849278,0.0114037,87761.0,87745.0,0.0684457]
[1766905853178,0.0114037,87761.0,87746.0,0.01139]
[1766905856084,0.05704,87762.0,87746.0,0.01139]
[1766905858883,0.0684436,87762.0,87746.0,0.01139]
[1766905862378,0.0114038,87760.0,87746.0,0.01139]
[1766905863289,0.05704,87762.0,87746.0,0.01139]
[1766905864387,0.0114037,87761.0,87746.0,0.01139]
[1766905869097,0.0114037,87761.0,87745.0,0.05704]
[1766905871797,0.0114037,87761.0,87746.0,0.01139]
[1766905875499,0.05704,87762.0,87746.0,0.01139]
[1766905877707,0.05704,87762.0,87746.0,0.0227955]
[1766905890313,0.0684436,87762.0,87746.0,0.0227955]
[1766905890716,0.0684436,87762.0,87746.0,0.01139]
[1766905891817,0.0684436,87762.0,87745.0,0.05704]
[1766905892014,0.11446115,87755.0,87745.0,0.05704]
[1766905894217,0.11446115,87755.0,87745.0,0.0684456]
[1766905894616,0.11446115,87755.0,87746.0,0.01139]
[1766905906825,0.11446115,87755.0,87747.0,0.0114055]
[1766905908628,0.05704,87757.0,87747.0,0.0114055]
[1766905908926,0.17150115,87757.0,87747.0,0.0114055]
[1766905910329,0.05704,87757.0,87747.0,0.0114055]
[1766905910533,0.17150115,87757.0,87747.0,0.0114055]
[1766905911932,0.05704,87757.0,87747.0,0.0114055]
[1766905912134,0.17150115,87757.0,87747.0,0.0114055]
[1766905913734,0.17150115,87757.0,87746.0,0.01139]
[1766905916537,0.05704,87757.0,87746.0,0.01139]
[1766905919640,0.05704,87757.0,87745.0,0.05704]
[1766905923939,0.05704,87757.0,87746.0,0.01139]
[1766905925043,0.05704,87757.0,87745.0,0.05704]
[1766905925942,0.02407781,87756.0,87745.0,0.05704]
[1766905926142,0.02407781,87755.0,87745.0,0.05704]
[1766905926441,0.05704,87757.0,87745.0,0.05704]
[1766905926632,0.02407765,87756.0,87745.0,0.05704]
[1766905926934,0.02407765,87755.0,87745.0,0.05704]
[1766905927127,0.05704,87757.0,87745.0,0.05704]
[1766905927333,0.02407772,87756.0,87745.0,0.05704]
[1766905927531,0.02407772,87755.0,87745.0,0.05704]
[1766905927731,0.05704,87757.0,87745.0,0.05704]
[1766905927941,0.02407771,87756.0,87745.0,0.05704]
[1766905928141,0.02407771,87755.0,87745.0,0.05704]
[1766905928442,0.05704,87757.0,87745.0,0.05704]
[1766905928740,0.02407753,87756.0,87745.0,0.05704]
[1766905928935,0.02407753,87755.0,87745.0,0.05704]
[1766905929136,0.05704,87757.0,87745.0,0.05704]
[1766905929338,0.02407785,87756.0,87745.0,0.05704]
[1766905929536,0.02407785,87755.0,87745.0,0.05704]
[1766905929741,0.05704,87757.0,87745.0,0.05704]
[1766905929944,0.02407782,87756.0,87745.0,0.05704]
[1766905930241,0.02407782,87755.0,87745.0,0.05704]
[1766905930451,0.05704,87757.0,87745.0,0.05704]
[1766905930751,0.0240784,87756.0,87745.0,0.05704]
[1766905930952,0.0240784,87755.0,87745.0,0.05704]
[1766905931152,0.05704,87757.0,87745.0,0.05704]
[1766905931353,0.02407899,87756.0,87745.0,0.05704]
[1766905931554,0.02407899,87755.0,87745.0,0.05704]
[1766905931754,0.05704,87757.0,87745.0,0.05704]
[1766905932056,0.02407897,87756.0,87745.0,0.05704]
[1766905932256,0.02407897,87755.0,87745.0,0.05704]
[1766905932457,0.05704,87757.0,87745.0,0.05704]
[1766905932656,0.02408019,87756.0,87745.0,0.05704]
[1766905932846,0.02408019,87755.0,87745.0,0.05704]
[1766905933044,0.05704,87757.0,87745.0,0.05704]
[1766905933247,0.0242844,87756.0,87745.0,0.05704]
[1766905933555,0.0242844,87755.0,87745.0,0.05704]
[1766905933758,0.05704,87757.0,87745.0,0.05704]
[1766905934058,0.02428438,87756.0,87745.0,0.05704]
[1766905934360,0.02428438,87755.0,87745.0,0.05704]
[1766905934557,0.02428438,87754.0,87745.0,0.05704]
[1766905934759,0.05704,87757.0,87745.0,0.05704]
[1766905935065,0.02428419,87756.0,87745.0,0.05704]
[1766905935359,0.02428419,87755.0,87745.0,0.05704]
[1766905935551,0.02428419,87754.0,87745.0,0.05704]
[1766905935751,0.05704,87757.0,87745.0,0.05704]
[1766905936052,0.02428406,87756.0,87745.0,0.05704]
[1766905936351,0.02428406,87755.0,87745.0,0.05704]
[1766905936549,0.02428406,87754.0,87745.0,0.05704]
[1766905936852,0.05704,87757.0,87745.0,0.05704]
[1766905937044,0.02428397,87756.0,87745.0,0.05704]
[1766905937249,0.02428397,87755.0,87745.0,0.05704]
[1766905937462,0.05704,87757.0,87745.0,0.05704]
[1766905937760,0.02428389,87756.0,87745.0,0.05704]
[1766905937961,0.02428389,87755.0,87745.0,0.05704]
[1766905938161,0.05704,87757.0,87745.0,0.05704]
[1766905938462,0.02428384,87756.0,87745.0,0.05704]
[1766905938653,0.02428384,87755.0,87745.0,0.05704]
[1766905938853,0.05704,87757.0,87745.0,0.05704]
[1766905939155,0.02428383,87756.0,87745.0,0.05704]
[1766905939361,0.02428383,87755.0,87745.0,0.05704]
[1766905939560,0.05704,87757.0,87745.0,0.05704]
[1766905939762,0.02428378,87756.0,87745.0,0.05704]
[1766905939963,0.02428378,87755.0,87745.0,0.05704]
[1766905940260,0.05704,87757.0,87745.0,0.05704]
[1766905940461,0.02428373,87756.0,87745.0,0.05704]
[1766905940663,0.05704,87757.0,87745.0,0.05704]
[1766905940664,0.02428373,87755.0,87745.0,0.05704]
[1766905940857,0.05704,87757.0,87745.0,0.05704]
[1766905941163,0.02428373,87756.0,87745.0,0.05704]
[1766905941365,0.02428373,87755.0,87745.0,0.05704]
[1766905941662,0.05704,87757.0,87745.0,0.05704]
[1766905941864,0.0242837,87756.0,87745.0,0.05704]
[1766905942162,0.01289363,87755.0,87745.0,0.0684457]
[1766905942362,0.05704,87757.0,87745.0,0.0684457]
[1766905942554,0.11446115,87755.0,87745.0,0.0684457]
[1766905945866,0.11446115,87755.0,87747.0,0.0114054]
[1766905947457,0.05704,87757.0,87751.0,0.0114049]
[1766905950567,0.05704,87757.0,87745.0,0.05704]
[1766905950767,0.11446115,87755.0,87745.0,0.05704]
[1766905952167,0.11446115,87755.0,87749.0,0.0114052]
[1766905952367,0.05704,87757.0,87749.0,0.0114052]
[1766905953973,0.01310494,87760.0,87749.0,0.0114052]
[1766905954268,0.08127392,87759.0,87749.0,0.0114052]
[1766905954468,0.02423392,87758.0,87749.0,0.0114052]
[1766905954767,0.02423392,87757.0,87749.0,0.0114052]
[1766905954964,0.05704,87759.0,87749.0,0.0114052]
[1766905955168,0.02423342,87758.0,87749.0,0.0114052]
[1766905955464,0.02423342,87757.0,87749.0,0.0114052]
[1766905955663,0.05704,87759.0,87749.0,0.0114052]
[1766905955868,0.02423301,87758.0,87749.0,0.0114052]
[1766905956169,0.02423301,87757.0,87749.0,0.0114052]
[1766905956366,0.05704,87759.0,87749.0,0.0114052]
[1766905956570,0.02439809,87758.0,87749.0,0.0114052]
[1766905956765,0.02439809,87757.0,87749.0,0.0114052]
[1766905956965,0.05704,87759.0,87749.0,0.0114052]
[1766905957265,0.02439964,87758.0,87749.0,0.0114052]
[1766905957464,0.02439964,87757.0,87749.0,0.0114052]
[1766905957665,0.05704,87759.0,87749.0,0.0114052]
[1766905957965,0.02439933,87758.0,87749.0,0.0114052]
[1766905958165,0.02439933,87757.0,87749.0,0.0114052]
[1766905958366,0.05704,87759.0,87749.0,0.0114052]
[1766905958668,0.02439903,87758.0,87749.0,0.0114052]
[1766905958864,0.02439903,87757.0,87749.0,0.0114052]
[1766905959064,0.05704,87759.0,87749.0,0.0114052]
[1766905959265,0.02439903,87758.0,87749.0,0.0114052]
[1766905959464,0.02439903,87757.0,87749.0,0.0114052]
[1766905959664,0.05704,87759.0,87749.0,0.0114052]
[1766905959864,0.02439881,87758.0,87749.0,0.0114052]
[1766905960064,0.02439881,87757.0,87749.0,0.0114052]
[1766905960272,0.05704,87759.0,87749.0,0.0114052]
[1766905960473,0.02439862,87758.0,87749.0,0.0114052]
[1766905960672,0.02439862,87757.0,87749.0,0.0114052]
[1766905960873,0.05704,87759.0,87749.0,0.0114052]
[1766905961074,0.02439862,87758.0,87749.0,0.0114052]
[1766905961373,0.02439862,87757.0,87749.0,0.0114052]
[1766905961574,0.05704,87759.0,87749.0,0.0114052]
[1766905961777,0.02439847,87758.0,87749.0,0.0114052]
[1766905961965,0.02439847,87757.0,87749.0,0.0114052]
[1766905962165,0.05704,87759.0,87749.0,0.0114052]
[1766905962367,0.02439835,87758.0,87746.0,0.0114055]
[1766905962571,0.02439835,87757.0,87746.0,0.0114055]
[1766905962770,0.05704,87759.0,87746.0,0.0114055]
[1766905962975,0.02439835,87758.0,87746.0,0.0114055]
[1766905963175,0.02439835,87757.0,87746.0,0.0114055]
[1766905963377,0.05704,87759.0,87746.0,0.0114055]
[1766905963678,0.02439825,87758.0,87746.0,0.0114055]
[1766905963875,0.02439825,87757.0,87746.0,0.0114055]
[1766905964089,0.05704,87759.0,87746.0,0.0114055]
[1766905964376,0.02439826,87758.0,87746.0,0.0114055]
[1766905964577,0.02439826,87757.0,87746.0,0.0114055]
[1766905964771,0.05704,87759.0,87746.0,0.0114055]
[1766905964971,0.02439825,87758.0,87746.0,0.0114055]
[1766905965172,0.02439825,87757.0,87746.0,0.0114055]
[1766905965365,0.05704,87759.0,87746.0,0.0114055]
[1766905965567,0.02439828,87758.0,87746.0,0.0114055]
[1766905965763,0.02439828,87757.0,87746.0,0.0114055]
[1766905965972,0.05704,87759.0,87746.0,0.0114055]
[1766905966168,0.02439829,87758.0,87746.0,0.0114055]
[1766905966373,0.02439829,87757.0,87746.0,0.0114055]
[1766905966676,0.05704,87759.0,87745.0,0.05704]
[1766905966881,0.05704,87759.0,87737.0,0.06176089]
[1766905966882,0.0114045,87755.0,87741.0,0.05704]
[1766905967081,0.02439738,87754.0,87739.0,0.05704]
[1766905967383,0.05704,87753.0,87739.0,0.05704]
[1766905967578,0.11445643,87750.0,87739.0,0.05704]
[1766905967771,0.05704,87753.0,87739.0,0.05704]
[1766905971380,0.0684447,87753.0,87739.0,0.05704]
[1766905973190,0.011405,87751.0,87739.0,0.05704]
[1766905976084,0.05704,87753.0,87739.0,0.05704]
[1766905977185,0.02467464,87752.0,87739.0,0.05704]
[1766905977385,0.05704,87753.0,87739.0,0.05704]
[1766905977586,0.02467581,87752.0,87739.0,0.05704]
[1766905977780,0.05704,87753.0,87739.0,0.05704]
[1766905977979,0.02467613,87752.0,87739.0,0.05704]
[1766905978284,0.05704,87753.0,87739.0,0.05704]
[1766905978487,0.02467566,87752.0,87739.0,0.05704]
[1766905978684,0.05704,87753.0,87737.0,0.00017089]
[1766905978885,0.0684448,87753.0,87738.0,0.05704]
[1766905979987,0.05704,87753.0,87738.0,0.05704]
[1766905980789,0.05704,87753.0,87739.0,0.0114065]
[1766905982281,0.05704,87753.0,87738.0,0.05704]
[1766905982488,0.05704,87760.0,87748.0,0.0114053]
[1766905982690,0.02467467,87759.0,87748.0,0.0114053]
[1766905982881,0.02467467,87758.0,87748.0,0.0114053]
[1766905983082,0.02467467,87757.0,87748.0,0.0114053]
[1766905983283,0.09696,87763.0,87750.0,0.011405]
[1766905983586,0.02453679,87762.0,87747.0,0.0114055]
[1766905983784,0.02453679,87761.0,87745.0,0.05704]
[1766905983979,0.02453679,87760.0,87751.0,0.0114049]
[1766905984189,0.00017089,87765.0,87751.0,0.0114049]
[1766905985791,0.00017089,87765.0,87753.0,0.0114046]
[1766905986188,0.00017089,87765.0,87755.0,0.0114043]
[1766905987092,0.00017089,87765.0,87757.0,0.0114041]
[1766905989294,0.00017089,87765.0,87753.0,0.0114047]
[1766905990188,0.00017089,87765.0,87756.0,0.0114042]
[1766905990994,0.00017089,87765.0,87753.0,0.0114047]
[1766905994697,0.00017089,87765.0,87752.0,0.05704]
[1766905995286,0.00017089,87765.0,87753.0,0.0114047]
[1766906002094,0.05704,87767.0,87753.0,0.0114047]
[1766906002499,0.15623862,87773.0,87755.0,0.0114044]
[1766906002903,0.0114027,87769.0,87752.0,0.0684447]
[1766906003098,0.01151568,87769.0,87752.0,0.06861559]
[1766906005304,0.00011298,87769.0,87752.0,0.06861559]
[1766906006404,0.00011298,87769.0,87754.0,0.0114045]
[1766906008806,0.00011298,87769.0,87752.0,0.05721089]
[1766906011604,0.0114028,87768.0,87752.0,0.05721089]
[1766906014399,0.02415683,87767.0,87752.0,0.05721089]
[1766906014604,0.02415683,87766.0,87752.0,0.05721089]
[1766906014805,0.02415683,87765.0,87752.0,0.05721089]
[1766906015106,0.02415683,87764.0,87752.0,0.05721089]
[1766906015307,0.02415683,87763.0,87752.0,0.05721089]
[1766906015606,0.0114028,87768.0,87752.0,0.05721089]
[1766906015806,0.02416017,87767.0,87752.0,0.05721089]
[1766906016008,0.02416017,87766.0,87752.0,0.05721089]
[1766906016207,0.0114033,87764.0,87752.0,0.05721089]
[1766906019423,0.0114029,87767.0,87752.0,0.05721089]
[1766906027325,0.00011298,87769.0,87752.0,0.06861559]
[1766906027732,0.00011298,87769.0,87754.0,0.0114045]
[1766906029135,0.00011298,87769.0,87752.0,0.05721089]
[1766906029136,0.01151568,87769.0,87752.0,0.05721089]
[1766906029450,0.11442056,87770.0,87752.0,0.06861569]
[1766906031243,0.0114027,87769.0,87752.0,0.06861569]
[1766906042946,0.11442056,87770.0,87754.0,0.0114045]
[1766906047153,0.12582306,87770.0,87754.0,0.0114045]
[1766906053461,0.0114028,87768.0,87752.0,0.05721089]
[1766906056763,0.0114031,87766.0,87752.0,0.05721089]
[1766906057761,0.0114031,87766.0,87752.0,0.08801715]
[1766906064564,0.0114027,87769.0,87752.0,0.08801715]
[1766906065763,0.0114031,87766.0,87752.0,0.08801715]